bitfinex/quotes_BTCUSD_20240811
["timestamp","ask_amount","ask_price","bid_price","bid_amount"]
[1723418525550,0.28295395,58923.0,58922.0,0.16120721]
[1723418526018,0.28295395,58923.0,58922.0,0.15420721]
[1723418526404,0.52155195,58923.0,58922.0,0.15420721]
[1723418526608,0.52155195,58923.0,58922.0,0.0132442]
[1723418526843,0.52055195,58923.0,58922.0,0.0132442]
[1723418527303,0.16415495,58923.0,58922.0,0.14922255]
[1723418527483,0.28795395,58923.0,58922.0,0.14922255]
[1723418527638,0.16915495,58923.0,58922.0,0.14922255]
[1723418528185,0.28395395,58923.0,58922.0,0.14922255]
[1723418528328,1.16456287,58923.0,58922.0,0.14097835]
[1723418528537,1.16456287,58923.0,58917.0,0.0091539]
[1723418528538,0.594045,58918.0,58917.0,0.0091539]
[1723418528775,0.90325992,58918.0,58917.0,0.0009097]
[1723418528976,0.92116375,58918.0,58917.0,0.0009097]
[1723418529175,1.15878175,58918.0,58917.0,0.0009097]
[1723418529607,1.19404464,58918.0,58917.0,0.0009097]
[1723418529823,1.19404464,58918.0,58917.0,0.0039097]
[1723418530411,0.95642664,58918.0,58917.0,0.0039097]
[1723418530729,0.95642664,58918.0,58917.0,0.3685869]
[1723418530730,0.01790383,58918.0,58917.0,0.3685869]
[1723418530869,0.01790383,58918.0,58917.0,0.50957307]
[1723418531072,0.264201,58922.0,58918.0,0.118808]
[1723418531265,0.1454,58922.0,58921.0,0.0082442]
[1723418531467,0.000828,58923.0,58922.0,0.1270452]
[1723418531714,0.000828,58923.0,58922.0,0.14922689]
[1723418532124,0.000828,58923.0,58917.0,0.2385307]
[1723418532125,0.16147446,58923.0,58921.0,0.0082442]
[1723418532459,0.16147446,58923.0,58917.0,0.0019097]
[1723418532460,0.51787146,58923.0,58922.0,0.14921808]
[1723418532837,0.28027346,58923.0,58922.0,0.14921808]
[1723418532972,0.28027346,58923.0,58922.0,0.15021808]
[1723418533176,0.28027346,58923.0,58922.0,0.15421808]
[1723418533373,0.58447146,58923.0,58922.0,0.0132442]
[1723418534185,0.58447146,58923.0,58922.0,0.005]
[1723418534407,0.58447146,58923.0,58922.0,0.004]
[1723418534820,0.59047146,58923.0,58922.0,0.005]
[1723418535022,0.59047146,58923.0,58922.0,0.0092442]
[1723418535224,0.59047146,58923.0,58920.0,0.0009108]
[1723418535225,0.356409,58921.0,58920.0,0.0009108]
[1723418535473,1.75025284,58921.0,58920.0,0.0009108]
[1723418535715,2.00785884,58921.0,58920.0,0.0009108]
[1723418535915,1.98789726,58921.0,58920.0,0.0009108]
[1723418536488,2.00989726,58921.0,58920.0,0.0039108]
[1723418536683,2.00789726,58921.0,58920.0,0.0039108]
[1723418536888,1.98789726,58921.0,58920.0,0.0039108]
[1723418537144,1.99089726,58921.0,58920.0,0.0049108]
[1723418537372,2.01871852,58921.0,58920.0,0.0049108]
[1723418537560,2.00871852,58921.0,58920.0,0.0049108]
[1723418537697,2.00871852,58921.0,58920.0,0.0019108]
[1723418538102,2.01971852,58921.0,58920.0,0.0029108]
[1723418538299,2.01671852,58921.0,58920.0,0.0019108]
[1723418538548,2.00571852,58921.0,58920.0,0.0009108]
[1723418538881,2.01371852,58921.0,58920.0,0.0029108]
[1723418538987,2.02471852,58921.0,58920.0,0.0019108]
[1723418539186,2.03496272,58921.0,58920.0,0.0029108]
[1723418539508,2.02396272,58921.0,58920.0,0.0019108]
[1723418539709,2.01485447,58921.0,58920.0,0.0019108]
[1723418540059,2.02685447,58921.0,58920.0,0.0029108]
[1723418541277,2.01585447,58921.0,58920.0,0.0019108]
[1723418541517,2.00385447,58921.0,58920.0,0.0009108]
[1723418541819,2.01185447,58921.0,58920.0,0.0019108]
[1723418541948,2.01185447,58921.0,58920.0,0.0009108]
[1723418541949,2.00385447,58921.0,58920.0,0.0009108]
[1723418542152,2.01485447,58921.0,58920.0,0.0019108]
[1723418542369,2.02285447,58921.0,58920.0,0.0029108]
[1723418543757,2.02288325,58921.0,58920.0,0.0029108]
[1723418544360,2.03463905,58921.0,58920.0,0.0029108]
[1723418544614,2.04463905,58921.0,58920.0,0.0029108]
[1723418545019,2.0446366,58921.0,58920.0,0.0029108]
[1723418545956,2.0346366,58921.0,58920.0,0.0029108]
[1723418546067,2.0446366,58921.0,58920.0,0.0029108]
[1723418546270,2.09539359,58921.0,58920.0,0.0029108]
[1723418546475,2.0446366,58921.0,58920.0,0.0029108]
[1723418546923,2.24701898,58921.0,58920.0,0.0029108]
[1723418547128,2.28226067,58921.0,58920.0,0.0029108]
[1723418547646,2.28308867,58921.0,58920.0,0.0029108]
[1723418547852,2.35922189,58921.0,58920.0,0.0029108]
[1723418548018,2.29332927,58921.0,58920.0,0.0029108]
[1723418548421,2.28332927,58921.0,58920.0,0.0029108]
[1723418548641,2.27332927,58921.0,58920.0,0.0029108]
[1723418548823,2.33408318,58921.0,58920.0,0.0029108]
[1723418549348,2.3242184,58921.0,58920.0,0.0029108]
[1723418549591,2.41308576,58921.0,58920.0,0.0029108]
[1723418550004,2.41308672,58921.0,58920.0,0.0029108]
[1723418550126,2.4469559,58921.0,58920.0,0.0029108]
[1723418550327,2.4369559,58921.0,58920.0,0.0029108]
[1723418550565,2.34808758,58921.0,58920.0,0.0029108]
[1723418550772,2.43695013,58921.0,58920.0,0.0029108]
[1723418551105,2.53846109,58921.0,58920.0,0.0029108]
[1723418551306,2.42695013,58921.0,58920.0,0.0029108]
[1723418551829,2.44695013,58921.0,58920.0,0.0029108]
[1723418551950,2.5823864,58921.0,58920.0,0.0029108]
[1723418552151,2.48087544,58921.0,58920.0,0.0029108]
[1723418552351,2.48087545,58921.0,58920.0,0.0029108]
[1723418552997,2.88592849,58921.0,58920.0,0.0029108]
[1723418553196,2.78207109,58921.0,58920.0,0.0029108]
[1723418554326,2.77994461,58921.0,58920.0,0.0029108]
[1723418554793,2.78019998,58921.0,58920.0,0.0029108]
[1723418555998,2.77919975,58921.0,58920.0,0.0029108]
[1723418556550,2.76919975,58921.0,58920.0,0.0029108]
[1723418556751,2.77919975,58921.0,58920.0,0.0029108]
[1723418556959,2.76919975,58921.0,58920.0,0.0029108]
[1723418557177,2.76919975,58921.0,58916.0,0.0009097]
[1723418557178,0.0117558,58917.0,58916.0,0.0009097]
[1723418557383,2.65823068,58917.0,58916.0,0.0009097]
[1723418557677,3.10836327,58917.0,58916.0,7e-07]
[1723418557876,3.24970522,58917.0,58916.0,7e-07]
[1723418558157,3.25970522,58917.0,58916.0,7e-07]
[1723418558334,3.28169568,58917.0,58916.0,0.0010007]
[1723418558899,3.27169568,58917.0,58916.0,7e-07]
[1723418559112,3.28269568,58917.0,58916.0,0.0010007]
[1723418559571,3.29669568,58917.0,58916.0,0.0020007]
[1723418559833,3.29669568,58917.0,58916.0,0.0010007]
[1723418560287,3.31069568,58917.0,58916.0,0.0020007]
[1723418561379,3.31057385,58917.0,58916.0,0.0020007]
[1723418561606,3.19159644,58917.0,58916.0,0.0020007]
[1723418561809,3.30946095,58917.0,58916.0,0.0020007]
[1723418562200,2.88468925,58917.0,58916.0,0.0020007]
[1723418562437,2.8554793,58917.0,58916.0,0.0020007]
[1723418563408,2.8274793,58917.0,58916.0,0.0010007]
[1723418563563,2.76182474,58917.0,58916.0,0.0010007]
[1723418563766,2.77582474,58917.0,58916.0,0.0010007]
[1723418563975,2.92897444,58917.0,58916.0,7e-07]
[1723418564169,2.94297444,58917.0,58916.0,7e-07]
[1723418564398,2.51820274,58917.0,58916.0,7e-07]
[1723418564807,2.64496287,58917.0,58916.0,7e-07]
[1723418565028,2.6360564,58917.0,58916.0,7e-07]
[1723418565741,2.8736784,58917.0,58916.0,7e-07]
[1723418566145,2.90027796,58917.0,58916.0,7e-07]
[1723418566344,2.92327796,58917.0,58916.0,7e-07]
[1723418566750,2.68565596,58917.0,58916.0,7e-07]
[1723418567412,2.92327796,58917.0,58916.0,7e-07]
[1723418567630,2.8054243,58917.0,58916.0,7e-07]
[1723418567838,1.08253034,58917.0,58916.0,0.0082449]
[1723418568049,1.47613478,58917.0,58916.0,7e-07]
[1723418568284,1.80622169,58917.0,58916.0,7e-07]
[1723418568397,1.04822169,58917.0,58916.0,7e-07]
[1723418568804,1.04822169,58917.0,58916.0,0.0092449]
[1723418568805,0.58697769,58917.0,58916.0,0.0092449]
[1723418569006,0.58697769,58917.0,58916.0,0.0082449]
[1723418569007,0.60097769,58917.0,58916.0,0.0082449]
[1723418569345,0.61297769,58917.0,58916.0,0.0092449]
[1723418569555,0.59897769,58917.0,58916.0,0.0082449]
[1723418569919,0.60697769,58917.0,58916.0,0.0082449]
[1723418570120,0.59297769,58917.0,58916.0,0.0082449]
[1723418570434,0.60397769,58917.0,58916.0,0.0082449]
[1723418570861,0.6040051,58917.0,58916.0,0.0082449]
[1723418571182,0.5730051,58917.0,58916.0,0.0082449]
[1723418571352,0.5830051,58917.0,58916.0,0.0082449]
[1723418571960,0.5860051,58917.0,58916.0,0.0082449]
[1723418572291,0.5868331,58917.0,58916.0,0.0082449]
[1723418574690,0.5518193,58917.0,58916.0,0.0082449]
[1723418574891,0.58691644,58917.0,58916.0,0.0082449]
[1723418575451,0.82453844,58917.0,58916.0,0.0082449]
[1723418575968,0.58691644,58917.0,58916.0,0.0082449]
[1723418576979,0.82453844,58917.0,58916.0,0.0082449]
[1723418578042,1.47453844,58917.0,58916.0,0.0082449]
[1723418578239,1.47464143,58917.0,58916.0,0.0082449]
[1723418578916,1.47464143,58917.0,58916.0,7e-07]
[1723418579207,1.47472127,58917.0,58916.0,7e-07]
[1723418581236,1.78984327,58917.0,58916.0,7e-07]
[1723418581811,1.84062971,58917.0,58916.0,7e-07]
[1723418581983,1.78984327,58917.0,58916.0,7e-07]
[1723418583765,1.84064808,58917.0,58916.0,7e-07]
[1723418584147,1.80536811,58917.0,58916.0,7e-07]
[1723418584349,1.84069763,58917.0,58916.0,7e-07]
[1723418586432,1.76319763,58917.0,58916.0,7e-07]
[1723418586584,1.71239282,58917.0,58916.0,7e-07]
[1723418586768,1.47477082,58917.0,58916.0,7e-07]
[1723418586976,1.47477082,58917.0,58916.0,0.1532449]
[1723418586977,0.58724017,58917.0,58916.0,0.1532449]
[1723418587222,1.38724017,58917.0,58916.0,0.1532449]
[1723418587778,1.62486226,58917.0,58916.0,0.1532449]
[1723418588827,1.38724026,58917.0,58916.0,0.1532449]
[1723418590388,0.98580334,58917.0,58916.0,0.1532449]
[1723418590702,1.46104734,58917.0,58916.0,0.1532449]
[1723418591582,1.46104827,58917.0,58916.0,0.1532449]
[1723418591701,1.46104827,58917.0,58916.0,0.29425282]
[1723418593775,1.22342627,58917.0,58916.0,0.29425282]
[1723418595196,0.06699327,58917.0,58916.0,0.53187836]
[1723418595431,0.03157138,58917.0,58916.0,0.88831736]
[1723418595651,0.013828,58917.0,58916.0,0.88831736]
[1723418596100,0.013828,58917.0,58916.0,1.09978537]
[1723418598824,0.013828,58917.0,58916.0,0.7473099]
[1723418599061,0.013828,58917.0,58916.0,1.09976223]
[1723418600685,0.013828,58917.0,58916.0,0.7473099]
[1723418600909,0.013828,58917.0,58916.0,1.09976223]
[1723418601366,0.013828,58917.0,58916.0,1.33738823]
[1723418602300,0.005828,58917.0,58916.0,1.3968518]
[1723418602582,0.12550706,58920.0,58916.0,0.8076229]
[1723418602838,0.000827,58930.0,58929.0,0.3646052]
[1723418603113,0.000827,58930.0,58929.0,1.6235899]
[1723418603370,0.01695064,58930.0,58929.0,1.56867453]
[1723418603599,0.0001,58949.0,58948.0,0.0082442]
[1723418603833,0.08194646,58949.0,58948.0,0.14916588]
[1723418604066,0.08194646,58949.0,58948.0,0.26791388]
[1723418604522,0.08194646,58949.0,58948.0,0.74290788]
[1723418605516,0.08194646,58949.0,58948.0,0.3644892]
[1723418605745,0.08294646,58949.0,58948.0,0.3704892]
[1723418606476,0.08294646,58949.0,58948.0,0.3744892]
[1723418606733,0.08294646,58949.0,58948.0,0.0182442]
[1723418606961,0.08294646,58949.0,58948.0,0.01]
[1723418606962,0.39026138,58949.0,58948.0,0.01]
[1723418607193,2.03148638,58949.0,58948.0,0.01]
[1723418607881,2.06792241,58949.0,58948.0,0.01]
[1723418608100,2.06692241,58949.0,58948.0,0.004]
[1723418608345,2.03131438,58949.0,58948.0,0.004]
[1723418608568,2.03531438,58949.0,58948.0,0.004]
[1723418608798,0.356269,58944.0,58943.0,0.0082442]
[1723418609029,0.52008392,58944.0,58943.0,0.0082442]
[1723418610229,0.52008392,58944.0,58943.0,0.0102442]
[1723418610472,0.28257092,58944.0,58943.0,0.0102442]
[1723418611850,0.28357092,58944.0,58943.0,0.0102442]
[1723418612346,0.181042,58944.0,58943.0,0.0102442]
[1723418612578,0.01622708,58944.0,58943.0,0.0102442]
[1723418612776,0.0771,58948.0,58944.0,0.118756]
[1723418612777,0.19585,58948.0,58944.0,0.118756]
[1723418612896,0.19585,58948.0,58947.0,0.0082442]
[1723418613295,0.000928,58949.0,58948.0,0.0082442]
[1723418613505,0.750928,58949.0,58948.0,0.0082442]
[1723418613924,0.197948,58948.0,58947.0,0.0082442]
[1723418614124,0.58269146,58948.0,58947.0,0.0082442]
[1723418614350,0.34519446,58948.0,58947.0,0.0082442]
[1723418614522,0.58269146,58948.0,58947.0,0.0082442]
[1723418614724,0.34919446,58948.0,58947.0,0.0082442]
[1723418615713,0.35219446,58948.0,58947.0,0.0082442]
[1723418616489,0.08884646,58948.0,58947.0,0.0082442]
[1723418616644,0.09384646,58948.0,58947.0,0.0082442]
[1723418616846,0.21259446,58948.0,58947.0,0.0082442]
[1723418617143,0.72384646,58948.0,58947.0,0.0082442]
[1723418617349,0.71884646,58948.0,58947.0,0.0082442]
[1723418617991,0.007,58948.0,58947.0,0.4271952]
[1723418618201,0.007,58948.0,58947.0,0.6646962]
[1723418618409,0.007,58948.0,58947.0,0.80560775]
[1723418618623,0.012,58948.0,58947.0,0.80560775]
[1723418619075,0.007,58948.0,58947.0,0.80560775]
[1723418619546,0.008,58948.0,58947.0,0.80960775]
[1723418620012,0.008,58948.0,58947.0,0.88620775]
[1723418620410,0.008,58948.0,58947.0,1.12370875]
[1723418620628,0.008,58948.0,58947.0,0.88620775]
[1723418620918,0.008828,58948.0,58947.0,0.88620204]
[1723418621622,0.001828,58948.0,58947.0,0.88620204]
[1723418622549,0.002828,58948.0,58947.0,0.89220204]
[1723418623772,0.002828,58948.0,58947.0,1.12970304]
[1723418623971,0.002828,58948.0,58947.0,1.29351796]
[1723418624185,0.002828,58948.0,58947.0,1.48586468]
[1723418624386,0.002828,58948.0,58947.0,1.89533992]
[1723418624586,0.002828,58948.0,58947.0,1.89733992]
[1723418624992,0.001828,58948.0,58947.0,1.54111312]
[1723418625241,0.00827,58961.0,58960.0,0.8393152]
[1723418625496,0.00827,58961.0,58960.0,1.20593012]
[1723418625696,0.02455182,58961.0,58960.0,1.20593012]
[1723418625978,0.00827,58961.0,58960.0,1.20593012]
[1723418626195,0.00827,58961.0,58960.0,1.0421152]
[1723418626399,0.00827,58961.0,58960.0,1.1213152]
[1723418626598,0.00927,58961.0,58960.0,1.1283152]
[1723418627019,0.01027,58961.0,58960.0,1.1333152]
[1723418627182,0.00927,58961.0,58960.0,1.1263152]
[1723418627579,0.01027,58961.0,58960.0,1.1373152]
[1723418628080,0.00927,58961.0,58960.0,1.1323152]
[1723418628463,0.01027,58961.0,58960.0,1.30513012]
[1723418628861,0.00927,58961.0,58960.0,1.29413012]
[1723418629157,0.01027,58961.0,58960.0,1.62957912]
[1723418629403,0.01027,58961.0,58960.0,1.99172003]
[1723418629606,0.01027,58961.0,58960.0,2.01211613]
[1723418629607,0.00927,58961.0,58960.0,2.01211613]
[1723418629806,0.00827,58976.0,58975.0,0.6017142]
[1723418630007,0.02472792,58976.0,58975.0,0.88147056]
[1723418630179,0.00827,58976.0,58975.0,0.91086666]
[1723418630384,0.00827,58976.0,58975.0,1.18145158]
[1723418630609,0.00827,58976.0,58975.0,0.26779456]
[1723418630786,0.00827,58976.0,58975.0,0.50518256]
[1723418630986,0.00827,58976.0,58975.0,0.74257056]
[1723418631211,0.00827,58976.0,58975.0,1.11925856]
[1723418631431,0.00827,58976.0,58975.0,1.35990972]
[1723418631938,0.00827,58976.0,58975.0,1.36090972]
[1723418631939,0.01427,58976.0,58975.0,1.36090972]
[1723418632390,0.01427,58976.0,58975.0,1.52472464]
[1723418632588,0.00827,58976.0,58975.0,1.54672464]
[1723418632791,0.00927,58976.0,58975.0,1.56372464]
[1723418632996,0.00927,58976.0,58975.0,1.56772464]
[1723418633203,0.00927,58976.0,58975.0,1.56372464]
[1723418633632,0.00827,58976.0,58975.0,1.59553578]
[1723418633840,0.00827,58976.0,58975.0,1.54672464]
[1723418634708,0.00827,58976.0,58975.0,1.41984034]
[1723418634922,0.00927,58976.0,58975.0,1.57265842]
[1723418635500,0.00827,58976.0,58975.0,1.3738435]
[1723418635697,0.00827,58976.0,58975.0,1.2345435]
[1723418635904,0.00927,58976.0,58975.0,1.2465435]
[1723418636321,0.00927,58976.0,58975.0,1.48965842]
[1723418636527,0.00827,58976.0,58975.0,2.03633832]
[1723418636761,0.00927,58976.0,58975.0,2.17773442]
[1723418637004,0.00927,58976.0,58975.0,1.96515756]
[1723418637157,0.00927,58976.0,58975.0,1.95815756]
[1723418637361,0.00927,58976.0,58975.0,1.91934642]
[1723418637559,0.00927,58976.0,58975.0,1.89634642]
[1723418637759,0.00927,58976.0,58975.0,1.90834642]
[1723418637990,0.00927,58976.0,58975.0,1.91966801]
[1723418638190,0.00827,58976.0,58975.0,1.91966801]
[1723418638394,0.00927,58976.0,58975.0,1.93164903]
[1723418638596,0.00927,58976.0,58975.0,1.90225293]
[1723418638797,0.00927,58976.0,58975.0,1.89025293]
[1723418638971,0.00827,58976.0,58975.0,1.89025293]
[1723418639172,0.00827,58976.0,58975.0,1.92061228]
[1723418639173,0.00927,58976.0,58975.0,1.92061228]
[1723418639412,0.00927,58976.0,58975.0,1.89125293]
[1723418639601,0.00927,58976.0,58975.0,1.93461228]
[1723418639798,0.00927,58976.0,58975.0,1.87925293]
[1723418640146,0.00927,58976.0,58975.0,1.89325293]
[1723418640348,0.00827,58976.0,58975.0,1.87925293]
[1723418640550,0.00827,58976.0,58975.0,1.87525293]
[1723418640793,0.00827,58976.0,58975.0,1.92788228]
[1723418640999,0.00827,58976.0,58975.0,1.90388228]
[1723418641213,0.00827,58976.0,58975.0,1.88452291]
[1723418641417,0.00827,58976.0,58975.0,1.92788226]
[1723418641618,0.00927,58976.0,58975.0,1.94188226]
[1723418642043,0.00827,58976.0,58975.0,1.94988226]
[1723418642358,0.00927,58976.0,58975.0,1.96388226]
[1723418642558,0.00927,58976.0,58975.0,1.94988226]
[1723418642754,0.00927,58976.0,58975.0,1.93588226]
[1723418642999,0.00827,58976.0,58975.0,1.94988226]
[1723418643200,0.00927,58976.0,58975.0,1.94988226]
[1723418643555,0.00927,58976.0,58975.0,1.99034108]
[1723418643771,0.00927,58976.0,58975.0,1.96388226]
[1723418644175,0.00927,58976.0,58975.0,1.93188226]
[1723418644378,0.00927,58976.0,58975.0,1.79228226]
[1723418644572,0.00927,58976.0,58975.0,1.76292291]
[1723418645141,0.00927,58976.0,58975.0,1.41089671]
[1723418645341,0.00927,58976.0,58975.0,1.76292724]
[1723418645704,0.00927,58976.0,58975.0,1.50253924]
[1723418646777,0.00927,58976.0,58975.0,1.51453924]
[1723418647196,0.00927,58976.0,58975.0,1.51253924]
[1723418647633,0.00927,58976.0,58975.0,1.51453924]
[1723418648009,0.00927,58976.0,58975.0,1.50253924]
[1723418649340,0.00927,58976.0,58975.0,1.51253924]
[1723418649912,0.00927,58976.0,58975.0,1.51453924]
[1723418650727,0.00927,58976.0,58975.0,1.50253924]
[1723418652004,0.00927,58976.0,58975.0,1.15050871]
[1723418652228,0.00927,58976.0,58975.0,1.50254434]
[1723418653348,0.15667,58976.0,58975.0,0.74436183]
[1723418653491,0.15667,58976.0,58975.0,0.98174983]
[1723418653894,0.17331015,58976.0,58975.0,0.98174983]
[1723418654097,0.17331015,58976.0,58975.0,0.38827983]
[1723418654285,0.17331015,58976.0,58975.0,0.50697383]
[1723418654490,0.69220107,58976.0,58975.0,0.36603563]
[1723418654698,0.69220107,58976.0,58975.0,0.37203563]
[1723418654699,0.69320107,58976.0,58975.0,0.37203563]
[1723418654912,1.20288151,58976.0,58975.0,0.16081425]
[1723418655316,1.20288151,58976.0,58975.0,0.14681425]
[1723418655561,1.20288151,58976.0,58975.0,0.15481425]
[1723418655840,1.20188151,58976.0,58975.0,0.14081425]
[1723418656243,1.16996907,58976.0,58970.0,0.0082442]
[1723418656445,0.43795246,58971.0,58970.0,0.0082442]
[1723418656600,0.76015127,58971.0,58970.0,0.14911235]
[1723418657571,0.99755527,58971.0,58970.0,0.14086815]
[1723418658340,0.99755527,58971.0,58970.0,0.14186815]
[1723418658533,0.99755527,58971.0,58970.0,0.15011235]
[1723418658733,1.00055527,58971.0,58970.0,0.14086815]
[1723418658936,1.00155527,58971.0,58970.0,0.14086815]
[1723418659747,0.356136,58966.0,58965.0,0.0082442]
[1723418659945,0.42292692,58966.0,58965.0,0.14911467]
[1723418660156,0.43943997,58966.0,58965.0,0.14911467]
[1723418660519,0.15691305,58966.0,58965.0,0.14911467]
[1723418660966,0.15691305,58966.0,58965.0,0.27082867]
[1723418661172,0.01651305,58966.0,58965.0,0.90949959]
[1723418661373,0.0606,58972.0,58971.0,0.1269462]
[1723418661594,0.0606,58972.0,58971.0,0.26781667]
[1723418661595,0.07707671,58972.0,58971.0,0.26781667]
[1723418662027,0.0606,58972.0,58971.0,0.50522067]
[1723418662208,0.07709371,58972.0,58971.0,0.74262467]
[1723418662424,0.0606,58972.0,58971.0,0.74262467]
[1723418662660,0.08109371,58972.0,58971.0,0.50522067]
[1723418662858,0.08309371,58972.0,58971.0,0.50522067]
[1723418663052,0.02249371,58972.0,58971.0,0.74262467]
[1723418663413,0.006,58972.0,58971.0,0.74262467]
[1723418663883,0.002,58972.0,58971.0,0.74259602]
[1723418664336,0.006,58972.0,58971.0,0.74259602]
[1723418664576,0.004,58972.0,58971.0,0.74259602]
[1723418664775,0.0775,58977.0,58975.0,0.118694]
[1723418664925,0.0775,58977.0,58975.0,0.50516802]
[1723418665121,0.49816371,58976.0,58975.0,0.50516802]
[1723418665979,0.49816371,58976.0,58975.0,0.51016802]
[1723418666434,0.02476371,58976.0,58975.0,0.51016802]
[1723418666639,0.00827,58976.0,58975.0,0.51016802]
[1723418667752,0.00827,58976.0,58975.0,0.74555602]
[1723418668052,0.00827,58976.0,58975.0,0.6047142]
[1723418668280,0.00827,58976.0,58975.0,0.74255346]
[1723418668518,0.00827,58976.0,58975.0,0.98994146]
[1723418668722,0.00827,58976.0,58975.0,0.98993408]
[1723418668899,0.00827,58976.0,58975.0,1.2011819]
[1723418669108,0.00827,58976.0,58975.0,0.98993408]
[1723418669277,0.00827,58976.0,58975.0,0.9637939]
[1723418669638,0.00827,58976.0,58975.0,0.81184062]
[1723418669838,0.00827,58976.0,58975.0,0.57445262]
[1723418670046,0.14967,58976.0,58975.0,0.15907608]
[1723418670263,0.16616371,58976.0,58975.0,0.15907608]
[1723418671752,0.28485571,58976.0,58975.0,0.15907608]
[1723418671955,0.52223971,58976.0,58975.0,0.15907608]
[1723418672154,0.28485571,58976.0,58975.0,0.15909476]
[1723418673116,0.16616371,58976.0,58975.0,0.15909476]
[1723418673795,0.28485571,58976.0,58975.0,0.15085056]
[1723418673929,0.52223971,58976.0,58975.0,0.15085056]
[1723418674424,0.28485571,58976.0,58975.0,0.15085056]
[1723418674866,0.28485571,58976.0,58975.0,0.15909476]
[1723418675063,0.16616371,58976.0,58975.0,0.15909476]
[1723418676466,0.16616371,58976.0,58975.0,0.15909133]
[1723418676670,0.52223971,58976.0,58975.0,0.15909133]
[1723418677455,0.28485571,58976.0,58975.0,0.0182442]
[1723418677679,0.52223971,58976.0,58975.0,0.15909333]
[1723418679055,0.28485571,58976.0,58975.0,0.15909333]
[1723418680131,0.28485571,58976.0,58975.0,0.15084913]
[1723418680132,0.95845667,58976.0,58975.0,0.15084913]
[1723418680447,0.95845667,58976.0,58975.0,0.14684913]
[1723418680882,0.92843863,58976.0,58975.0,0.14686134]
[1723418681104,0.96347473,58976.0,58975.0,0.14686134]
[1723418681307,0.356082,58975.0,58974.0,0.0082442]
[1723418681509,0.8690212,58975.0,58974.0,0.14910614]
[1723418681805,0.88559431,58975.0,58974.0,0.14910614]
[1723418682029,0.95009431,58975.0,58974.0,0.14086194]
[1723418682208,0.95009431,58975.0,58974.0,0.14910614]
[1723418682786,0.95209431,58975.0,58974.0,0.14910614]
[1723418683608,0.91705803,58975.0,58974.0,0.0082442]
[1723418683808,0.95216816,58975.0,58974.0,0.14910405]
[1723418684240,0.95616816,58975.0,58974.0,0.14910405]
[1723418684534,0.95716816,58975.0,58974.0,0.14910405]
[1723418684754,0.95316816,58975.0,58974.0,0.14910405]
[1723418685078,0.95616816,58975.0,58974.0,0.14910405]
[1723418685294,0.19889087,58975.0,58974.0,0.14910405]
[1723418685592,0.16377311,58975.0,58974.0,0.14910405]
[1723418685892,0.16377311,58975.0,58974.0,0.14909701]
[1723418686159,0.16077311,58975.0,58974.0,0.14909701]
[1723418686326,0.15777311,58975.0,58974.0,0.14909701]
[1723418686941,0.15777311,58975.0,58974.0,0.26779301]
[1723418687136,0.15777311,58975.0,58974.0,0.14909701]
[1723418687670,0.15877311,58975.0,58974.0,0.14909701]
[1723418687873,0.16177311,58975.0,58974.0,0.26779301]
[1723418688076,0.16077311,58975.0,58974.0,0.14909701]
[1723418688391,0.15777311,58975.0,58974.0,0.14909701]
[1723418688598,0.15877311,58975.0,58974.0,0.14909701]
[1723418688995,0.15877311,58975.0,58974.0,0.15009701]
[1723418689367,0.15877311,58975.0,58974.0,0.0092442]
[1723418689922,0.15877311,58975.0,58974.0,0.15009382]
[1723418691180,0.27746711,58975.0,58974.0,0.15009382]
[1723418691380,0.19387313,58975.0,58974.0,0.15009382]
[1723418691551,0.15877311,58975.0,58974.0,0.0092442]
[1723418691755,0.19387348,58975.0,58974.0,0.15009522]
[1723418691980,0.15877311,58975.0,58974.0,0.15009522]
[1723418692512,0.3126296,58975.0,58974.0,0.15009522]
[1723418693886,0.27746711,58975.0,58974.0,0.0092442]
[1723418694091,0.31267971,58975.0,58974.0,0.1500979]
[1723418694297,0.27829411,58975.0,58974.0,0.1500979]
[1723418694499,0.19481779,58975.0,58974.0,0.1500979]
[1723418694929,0.31351179,58975.0,58974.0,0.1500979]
[1723418696331,0.19481779,58975.0,58974.0,0.1500979]
[1723418696770,0.31351179,58975.0,58974.0,0.1500979]
[1723418698099,0.31351209,58975.0,58974.0,0.15009836]
[1723418699511,0.27829411,58975.0,58974.0,0.15009836]
[1723418699715,0.31353877,58975.0,58974.0,0.15009836]
[1723418700383,0.31353877,58975.0,58974.0,0.42070554]
[1723418700967,0.19484477,58975.0,58974.0,0.42070554]
[1723418701200,0.31357759,58975.0,58974.0,0.42069953]
[1723418701404,0.01840011,58975.0,58974.0,0.7174616]
[1723418702125,0.01840011,58975.0,58974.0,1.36346852]
[1723418702327,0.01840011,58975.0,58974.0,1.94146057]
[1723418702542,0.01840011,58975.0,58974.0,2.21340902]
[1723418702709,0.001827,58975.0,58974.0,2.24403446]
[1723418702910,0.001827,58975.0,58974.0,2.25451132]
[1723418703091,0.001827,58975.0,58974.0,2.25468209]
[1723418703295,0.001827,58975.0,58974.0,2.27568209]
[1723418703535,0.001827,58975.0,58974.0,2.14884012]
[1723418703737,0.001827,58975.0,58974.0,2.26419247]
[1723418703941,0.000827,58975.0,58974.0,2.25019247]
[1723418704113,0.001827,58975.0,58974.0,2.14884012]
[1723418704463,0.001827,58975.0,58974.0,2.24217609]
[1723418704675,0.001827,58975.0,58974.0,1.57925224]
[1723418704676,0.000827,58975.0,58974.0,1.57925224]
[1723418704836,0.000827,58975.0,58974.0,2.01531026]
[1723418705038,0.001827,58975.0,58974.0,2.02931026]
[1723418705240,0.001827,58975.0,58974.0,1.60725224]
[1723418705441,0.001827,58975.0,58974.0,2.01516035]
[1723418705664,0.000827,58975.0,58974.0,1.96650809]
[1723418705908,0.001827,58975.0,58974.0,1.98050809]
[1723418706038,0.001827,58975.0,58974.0,2.03117786]
[1723418706877,0.001827,58975.0,58974.0,1.96650809]
[1723418707243,0.000827,58975.0,58974.0,1.98650809]
[1723418707358,0.000827,58975.0,58974.0,2.10184764]
[1723418707559,0.001827,58975.0,58974.0,2.26381974]
[1723418707755,0.001827,58975.0,58974.0,2.10181477]
[1723418708003,0.001827,58975.0,58974.0,2.08781477]
[1723418708004,0.000827,58975.0,58974.0,2.08781477]
[1723418708207,0.000827,58975.0,58974.0,2.14051349]
[1723418708362,0.001827,58975.0,58974.0,1.74975665]
[1723418708759,0.001827,58975.0,58974.0,2.27776587]
[1723418708935,0.001827,58975.0,58974.0,2.25776587]
[1723418709168,0.001827,58975.0,58974.0,1.98047994]
[1723418709360,0.001827,58975.0,58974.0,2.05643871]
[1723418709564,0.001827,58975.0,58974.0,1.98047994]
[1723418709719,0.001827,58975.0,58974.0,2.05643871]
[1723418709920,0.001827,58975.0,58974.0,2.01911748]
[1723418710130,0.001827,58975.0,58974.0,1.91060613]